[Event "Titled Tuesday Blitz February 15 Late 2022"]
[White "Haszon, David"]
[Black "Villegas, Pierre"]
[WhiteFideId "733610"]
[BlackFideId "654183"]
[WhiteElo "2201"]
[BlackElo "2410"]
[Result "1-0"]
[Round "08"]
[TimeControl "180+1"]
[Date "2022.02.16"]
[WhiteClock "0:01:16"]
[BlackClock "0:00:04"]

1. e4 {[%clk 0:02:57]}  c6 {[%clk 0:02:59]} 2. d4 {[%clk 0:02:57]}  d5 {[%clk 0:02:59]} 3. e5 {[%clk 0:02:58]}  a6 {[%clk 0:02:59]} 4. Nf3 {[%clk 0:02:55]}  Bg4 {[%clk 0:02:57]} 5. Be2 {[%clk 0:02:54]}  e6 {[%clk 0:02:56]} 6. O-O {[%clk 0:02:55]}  c5 {[%clk 0:02:56]} 7. b3 {[%clk 0:02:51]}  Bxf3 {[%clk 0:02:52]} 8. Bxf3 {[%clk 0:02:52]}  cxd4 {[%clk 0:02:52]} 9. Qxd4 {[%clk 0:02:50]}  Nc6 {[%clk 0:02:53]} 10. Qf4 {[%clk 0:02:47]}  Nge7 {[%clk 0:02:51]} 11. Re1 {[%clk 0:02:42]}  Ng6 {[%clk 0:02:49]} 12. Qg3 {[%clk 0:02:43]}  Bb4 {[%clk 0:02:49]} 13. c3 {[%clk 0:02:42]}  Ba5 {[%clk 0:02:41]} 14. Bh5 {[%clk 0:02:39]}  Bc7 {[%clk 0:02:31]} 15. Bxg6 {[%clk 0:02:38]}  hxg6 {[%clk 0:02:32]} 16. Ba3 {[%clk 0:02:36]}  Qh4 {[%clk 0:02:08]} 17. f4 {[%clk 0:02:07]}  Bb6+ {[%clk 0:01:52]} 18. Kf1 {[%clk 0:02:01]}  O-O-O {[%clk 0:01:50]} 19. Nd2 {[%clk 0:01:51]}  Qxh2 {[%clk 0:01:10]} 20. Qxh2 {[%clk 0:01:52]}  Rxh2 {[%clk 0:01:10]} 21. Nf3 {[%clk 0:01:53]}  Rh1+ {[%clk 0:00:48]} 22. Ke2 {[%clk 0:01:53]}  Rxe1+ {[%clk 0:00:49]} 23. Rxe1 {[%clk 0:01:53]}  d4 {[%clk 0:00:49]} 24. cxd4 {[%clk 0:01:45]}  Nxd4+ {[%clk 0:00:49]} 25. Nxd4 {[%clk 0:01:45]}  Rxd4 {[%clk 0:00:50]} 26. Rc1+ {[%clk 0:01:45]}  Kd7 {[%clk 0:00:49]} 27. Bd6 {[%clk 0:01:44]}  Rxf4 {[%clk 0:00:46]} 28. g3 {[%clk 0:01:44]}  Rd4 {[%clk 0:00:42]} 29. Rf1 {[%clk 0:01:44]}  f5 {[%clk 0:00:39]} 30. Bf8 {[%clk 0:01:39]}  Re4+ {[%clk 0:00:36]} 31. Kf3 {[%clk 0:01:39]}  Rxe5 {[%clk 0:00:35]} 32. Bxg7 {[%clk 0:01:40]}  Re4 {[%clk 0:00:31]} 33. Bf6 {[%clk 0:01:32]}  Rg4 {[%clk 0:00:25]} 34. Rd1+ {[%clk 0:01:29]}  Kc6 {[%clk 0:00:25]} 35. Re1 {[%clk 0:01:28]}  Kd5 {[%clk 0:00:19]} 36. Re5+ {[%clk 0:01:27]}  Kd6 {[%clk 0:00:19]} 37. Re2 {[%clk 0:01:22]}  Bd4 {[%clk 0:00:17]} 38. Bd8 {[%clk 0:01:18]}  e5 {[%clk 0:00:17]} 39. Rc2 {[%clk 0:01:16]}  e4+ {[%clk 0:00:16]} 40. Kg2 {[%clk 0:01:16]}  Kd5 {[%clk 0:00:13]} 41. Bc7 {[%clk 0:01:16]}  Be5 {[%clk 0:00:10]} 42. Rd2+ {[%clk 0:01:15]}  Ke6 {[%clk 0:00:10]} 43. Bxe5 {[%clk 0:01:15]}  Kxe5 {[%clk 0:00:11]} 44. Rd7 {[%clk 0:01:15]}  f4 {[%clk 0:00:11]} 45. Re7+ {[%clk 0:01:14]}  Kf5 {[%clk 0:00:11]} 46. Rf7+ {[%clk 0:01:14]}  Kg5 {[%clk 0:00:11]} 47. Rxb7 {[%clk 0:01:14]}  Rxg3+ {[%clk 0:00:12]} 48. Kf2 {[%clk 0:01:15]}  e3+ {[%clk 0:00:08]} 49. Ke2 {[%clk 0:01:16]}  Kg4 {[%clk 0:00:08]} 50. Rb6 {[%clk 0:01:16]}  g5 {[%clk 0:00:09]} 51. Rxa6 {[%clk 0:01:16]}  Rg2+ {[%clk 0:00:09]} 52. Kd3 {[%clk 0:01:16]}  Kf3 {[%clk 0:00:10]} 53. Re6 {[%clk 0:01:17]}  Rd2+ {[%clk 0:00:09]} 54. Kc3 {[%clk 0:01:17]}  Rxa2 {[%clk 0:00:10]} 55. b4 {[%clk 0:01:17]}  e2 {[%clk 0:00:11]} 56. b5 {[%clk 0:01:18]}  Kf2 {[%clk 0:00:10]} 57. b6 {[%clk 0:01:18]}  e1=Q+ {[%clk 0:00:11]} 58. Rxe1 {[%clk 0:01:18]}  Kxe1 {[%clk 0:00:12]} 59. b7 {[%clk 0:01:18]}  f3 {[%clk 0:00:05]} 60. b8=Q {[%clk 0:01:18]}  Re2 {[%clk 0:00:05]} 61. Qg3+ {[%clk 0:01:17]}  Rf2 {[%clk 0:00:05]} 62. Qxg5 {[%clk 0:01:17]}  Re2 {[%clk 0:00:04]} 63. Qg1# {[%clk 0:01:16]} 1-0


[Site "https://www.chess.com"]

[Event "Titled Tuesday Blitz February 15 Late 2022"]
[White "Hoffmann, Asa"]
[Black "Bugayev, Vladimir"]
[WhiteFideId "2001470"]
[BlackFideId "30901480"]
[WhiteElo "2117"]
[BlackElo "2408"]
[Result "1-0"]
[Round "08"]
[TimeControl "180+1"]
[Date "2022.02.16"]
[WhiteClock "0:00:23"]
[BlackClock "0:00:01"]

1. d4 {[%clk 0:02:42]}  Nf6 {[%clk 0:02:58]} 2. Bg5 {[%clk 0:02:36]}  d5 {[%clk 0:02:49]} 3. Nd2 {[%clk 0:02:35]}  c6 {[%clk 0:02:43]} 4. e3 {[%clk 0:02:35]}  g6 {[%clk 0:02:15]} 5. Bd3 {[%clk 0:02:34]}  Bg7 {[%clk 0:02:15]} 6. f4 {[%clk 0:02:33]}  Bf5 {[%clk 0:01:58]} 7. Ngf3 {[%clk 0:02:32]}  Bg4 {[%clk 0:01:54]} 8. O-O {[%clk 0:02:17]}  O-O {[%clk 0:01:51]} 9. h3 {[%clk 0:02:16]}  Bxf3 {[%clk 0:01:51]} 10. Qxf3 {[%clk 0:02:16]}  Nbd7 {[%clk 0:01:46]} 11. c3 {[%clk 0:02:08]}  e6 {[%clk 0:01:35]} 12. g4 {[%clk 0:02:05]}  Qb6 {[%clk 0:01:30]} 13. b3 {[%clk 0:01:58]}  c5 {[%clk 0:01:27]} 14. f5 {[%clk 0:01:57]}  e5 {[%clk 0:01:26]} 15. dxe5 {[%clk 0:01:45]}  Nxe5 {[%clk 0:01:26]} 16. Qe2 {[%clk 0:01:45]}  Nxd3 {[%clk 0:01:01]} 17. Qxd3 {[%clk 0:01:44]}  d4 {[%clk 0:00:49]} 18. cxd4 {[%clk 0:01:41]}  cxd4 {[%clk 0:00:49]} 19. Nc4 {[%clk 0:01:32]}  Qc7 {[%clk 0:00:45]} 20. Bf4 {[%clk 0:01:30]}  Qd8 {[%clk 0:00:24]} 21. Qxd4 {[%clk 0:01:24]}  Nd5 {[%clk 0:00:24]} 22. Rad1 {[%clk 0:01:20]}  Nxf4 {[%clk 0:00:20]} 23. Qxf4 {[%clk 0:01:16]}  Qh4 {[%clk 0:00:20]} 24. Kg2 {[%clk 0:01:14]}  Bh6 {[%clk 0:00:20]} 25. Qg3 {[%clk 0:01:12]}  Qxg3+ {[%clk 0:00:20]} 26. Kxg3 {[%clk 0:01:11]}  b5 {[%clk 0:00:20]} 27. Nd6 {[%clk 0:01:06]}  Bxe3 {[%clk 0:00:18]} 28. Nxb5 {[%clk 0:01:04]}  Bb6 {[%clk 0:00:17]} 29. Rd5 {[%clk 0:00:59]}  Rad8 {[%clk 0:00:16]} 30. Rfd1 {[%clk 0:00:58]}  Rxd5 {[%clk 0:00:16]} 31. Rxd5 {[%clk 0:00:58]}  Kg7 {[%clk 0:00:17]} 32. Kf3 {[%clk 0:00:55]}  Rc8 {[%clk 0:00:17]} 33. Rd3 {[%clk 0:00:51]}  Rc2 {[%clk 0:00:17]} 34. Nc3 {[%clk 0:00:50]}  Ba5 {[%clk 0:00:11]} 35. Ne4 {[%clk 0:00:44]}  gxf5 {[%clk 0:00:07]} 36. gxf5 {[%clk 0:00:44]}  Rxa2 {[%clk 0:00:07]} 37. f6+ {[%clk 0:00:40]}  Kg6 {[%clk 0:00:07]} 38. Rd5 {[%clk 0:00:39]}  h6 {[%clk 0:00:06]} 39. h4 {[%clk 0:00:38]}  Bb6 {[%clk 0:00:04]} 40. h5+ {[%clk 0:00:37]}  Kh7 {[%clk 0:00:04]} 41. Rd7 {[%clk 0:00:37]}  Kg8 {[%clk 0:00:05]} 42. Rb7 {[%clk 0:00:31]}  Rb2 {[%clk 0:00:03]} 43. Rb8+ {[%clk 0:00:30]}  Kh7 {[%clk 0:00:03]} 44. Rf8 {[%clk 0:00:29]}  Rxb3+ {[%clk 0:00:02]} 45. Kg4 {[%clk 0:00:29]}  Rb4 {[%clk 0:00:02]} 46. Rxf7+ {[%clk 0:00:28]}  Kg8 {[%clk 0:00:03]} 47. Rg7+ {[%clk 0:00:28]}  Kf8 {[%clk 0:00:02]} 48. Kf5 {[%clk 0:00:28]}  Rb5+ {[%clk 0:00:02]} 49. Kg6 {[%clk 0:00:27]}  Be3 {[%clk 0:00:01]} 50. Nd6 {[%clk 0:00:23]} 1-0


[Site "https://www.chess.com"]

[Event "Titled Tuesday Blitz February 15 Late 2022"]
[White "Holt, Conrad"]
[Black "Niemann, Hans Moke"]
[WhiteFideId "2034387"]
[BlackFideId "2093596"]
[WhiteElo "2586"]
[BlackElo "2636"]
[Result "0-1"]
[Round "08"]
[TimeControl "180+1"]
[Date "2022.02.15"]
[WhiteClock "0:00:02"]
[BlackClock "0:00:17"]

1. d4 {[%clk 0:03:00]}  Nf6 {[%clk 0:03:00]} 2. c4 {[%clk 0:03:00]}  g6 {[%clk 0:02:57]} 3. Nc3 {[%clk 0:02:59]}  Bg7 {[%clk 0:02:58]} 4. e4 {[%clk 0:02:59]}  d6 {[%clk 0:02:58]} 5. Nf3 {[%clk 0:02:59]}  O-O {[%clk 0:02:58]} 6. h3 {[%clk 0:02:59]}  Nbd7 {[%clk 0:02:52]} 7. Bd3 {[%clk 0:02:58]}  e5 {[%clk 0:02:51]} 8. O-O {[%clk 0:02:58]}  h6 {[%clk 0:02:45]} 9. Re1 {[%clk 0:02:54]}  Re8 {[%clk 0:02:45]} 10. Be3 {[%clk 0:02:44]}  exd4 {[%clk 0:02:41]} 11. Bxd4 {[%clk 0:02:44]}  Ne5 {[%clk 0:02:40]} 12. Be2 {[%clk 0:02:35]}  Nc6 {[%clk 0:02:37]} 13. Bxf6 {[%clk 0:02:29]}  Bxf6 {[%clk 0:02:36]} 14. Qd2 {[%clk 0:02:30]}  Bg7 {[%clk 0:02:36]} 15. Rad1 {[%clk 0:02:29]}  Be6 {[%clk 0:02:31]} 16. Nd5 {[%clk 0:02:25]}  a5 {[%clk 0:02:32]} 17. Bf1 {[%clk 0:02:23]}  a4 {[%clk 0:02:31]} 18. Nf4 {[%clk 0:02:16]}  Bd7 {[%clk 0:02:30]} 19. c5 {[%clk 0:02:14]}  Ne5 {[%clk 0:02:06]} 20. Nxe5 {[%clk 0:02:05]}  Bxe5 {[%clk 0:02:06]} 21. Nd3 {[%clk 0:01:43]}  Bg7 {[%clk 0:02:04]} 22. cxd6 {[%clk 0:01:37]}  cxd6 {[%clk 0:02:05]} 23. Qb4 {[%clk 0:01:37]}  Bc6 {[%clk 0:02:01]} 24. e5 {[%clk 0:01:36]}  Bf8 {[%clk 0:01:58]} 25. exd6 {[%clk 0:01:05]}  Qxd6 {[%clk 0:01:50]} 26. Qxd6 {[%clk 0:00:47]}  Bxd6 {[%clk 0:01:49]} 27. g3 {[%clk 0:00:42]}  a3 {[%clk 0:01:39]} 28. Rxe8+ {[%clk 0:00:38]}  Bxe8 {[%clk 0:01:40]} 29. bxa3 {[%clk 0:00:37]}  Rxa3 {[%clk 0:01:41]} 30. Bg2 {[%clk 0:00:36]}  Ba4 {[%clk 0:01:23]} 31. Rd2 {[%clk 0:00:35]}  b6 {[%clk 0:01:21]} 32. Bd5 {[%clk 0:00:32]}  Kg7 {[%clk 0:01:21]} 33. Kg2 {[%clk 0:00:31]}  Bb5 {[%clk 0:01:19]} 34. Nc1 {[%clk 0:00:28]}  Be5 {[%clk 0:01:15]} 35. Bb3 {[%clk 0:00:27]}  Bc6+ {[%clk 0:01:15]} 36. Kf1 {[%clk 0:00:19]}  Ra8 {[%clk 0:01:11]} 37. Rc2 {[%clk 0:00:18]}  Bf3 {[%clk 0:01:09]} 38. Nd3 {[%clk 0:00:16]}  Rd8 {[%clk 0:01:02]} 39. Ne1 {[%clk 0:00:15]}  Bb7 {[%clk 0:00:57]} 40. Rc1 {[%clk 0:00:13]}  Rd2 {[%clk 0:00:52]} 41. Bc4 {[%clk 0:00:12]}  Bd4 {[%clk 0:00:51]} 42. Rc2 {[%clk 0:00:11]}  Rd1 {[%clk 0:00:48]} 43. Ke2 {[%clk 0:00:12]}  Ra1 {[%clk 0:00:32]} 44. Nf3 {[%clk 0:00:11]}  Bc5 {[%clk 0:00:31]} 45. Ne5 {[%clk 0:00:11]}  Rh1 {[%clk 0:00:17]} 46. h4 {[%clk 0:00:08]}  Rh2 {[%clk 0:00:16]} 47. Nd3 {[%clk 0:00:07]}  Bd4 {[%clk 0:00:16]} 48. Ke1 {[%clk 0:00:03]}  Be4 {[%clk 0:00:16]} 49. Kf1 {[%clk 0:00:01]}  Bf3 {[%clk 0:00:16]} 50. Ke1 {[%clk 0:00:01]}  Rh1+ {[%clk 0:00:16]} 51. Kd2 {[%clk 0:00:02]}  Rd1# {[%clk 0:00:17]} 0-1


[Site "https://www.chess.com"]

[Event "Titled Tuesday Blitz February 15 Late 2022"]
[White "Indjic, Aleksandar"]
[Black "Michelakos, Panagiotis"]
[WhiteFideId "911925"]
[BlackFideId "4216067"]
[WhiteElo "2616"]
[BlackElo "2140"]
[Result "0-1"]
[Round "08"]
[TimeControl "180+1"]
[Date "2022.02.15"]
[WhiteClock "0:00:20"]
[BlackClock "0:00:30"]

1. d4 {[%clk 0:03:00]}  d5 {[%clk 0:02:59]} 2. Nf3 {[%clk 0:03:00]}  c5 {[%clk 0:02:59]} 3. c4 {[%clk 0:02:58]}  e6 {[%clk 0:02:59]} 4. cxd5 {[%clk 0:02:56]}  exd5 {[%clk 0:03:00]} 5. Bg5 {[%clk 0:02:55]}  Be7 {[%clk 0:02:57]} 6. Bxe7 {[%clk 0:02:54]}  Nxe7 {[%clk 0:02:56]} 7. dxc5 {[%clk 0:02:54]}  Nbc6 {[%clk 0:02:49]} 8. Nbd2 {[%clk 0:02:50]}  O-O {[%clk 0:02:22]} 9. g3 {[%clk 0:02:49]}  Qa5 {[%clk 0:02:22]} 10. Qc1 {[%clk 0:02:48]}  b6 {[%clk 0:02:15]} 11. cxb6 {[%clk 0:02:45]}  Qxb6 {[%clk 0:02:16]} 12. Bg2 {[%clk 0:02:44]}  Ba6 {[%clk 0:02:14]} 13. O-O {[%clk 0:02:42]}  Rfc8 {[%clk 0:02:08]} 14. Qb1 {[%clk 0:02:33]}  Rab8 {[%clk 0:02:06]} 15. b3 {[%clk 0:02:29]}  Bxe2 {[%clk 0:02:03]} 16. Re1 {[%clk 0:02:28]}  Bb5 {[%clk 0:02:04]} 17. Ng5 {[%clk 0:02:26]}  g6 {[%clk 0:01:59]} 18. Ndf3 {[%clk 0:02:22]}  Nf5 {[%clk 0:01:42]} 19. Bh3 {[%clk 0:02:10]}  Ncd4 {[%clk 0:01:40]} 20. Nxd4 {[%clk 0:02:06]}  Nxd4 {[%clk 0:01:39]} 21. Bxc8 {[%clk 0:02:04]}  Rxc8 {[%clk 0:01:37]} 22. Qd1 {[%clk 0:01:56]}  Qf6 {[%clk 0:01:28]} 23. f4 {[%clk 0:01:51]}  Rc2 {[%clk 0:01:12]} 24. Nf3 {[%clk 0:01:31]}  Nxf3+ {[%clk 0:00:50]} 25. Qxf3 {[%clk 0:01:25]}  Qb6+ {[%clk 0:00:48]} 26. Qe3 {[%clk 0:00:25]}  d4 {[%clk 0:00:47]} 27. Qe5 {[%clk 0:00:25]}  d3+ {[%clk 0:00:37]} 28. Re3 {[%clk 0:00:20]}  Re2 {[%clk 0:00:30]} 0-1


[Site "https://www.chess.com"]

[Event "Titled Tuesday Blitz February 15 Late 2022"]
[White "Iskusnyh, Sergei"]
[Black "Moroni, Luca Jr"]
[WhiteFideId "4120027"]
[BlackFideId "865834"]
[WhiteElo "2492"]
[BlackElo "2573"]
[Result "0-1"]
[Round "08"]
[TimeControl "180+1"]
[Date "2022.02.15"]
[WhiteClock "0:01:33"]
[BlackClock "0:02:44"]

1. d4 {[%clk 0:03:00]}  d5 {[%clk 0:03:00]} 2. c4 {[%clk 0:03:00]}  dxc4 {[%clk 0:02:59]} 3. e3 {[%clk 0:03:00]}  Nf6 {[%clk 0:02:57]} 4. Bxc4 {[%clk 0:02:58]}  e6 {[%clk 0:02:56]} 5. Nf3 {[%clk 0:02:57]}  a6 {[%clk 0:02:56]} 6. O-O {[%clk 0:02:56]}  b5 {[%clk 0:02:56]} 7. Be2 {[%clk 0:02:52]}  Bb7 {[%clk 0:02:56]} 8. a4 {[%clk 0:02:34]}  b4 {[%clk 0:02:56]} 9. Nbd2 {[%clk 0:02:34]}  Nbd7 {[%clk 0:02:56]} 10. Nc4 {[%clk 0:02:34]}  c5 {[%clk 0:02:57]} 11. b3 {[%clk 0:02:26]}  Be7 {[%clk 0:02:56]} 12. Bb2 {[%clk 0:02:27]}  O-O {[%clk 0:02:57]} 13. Rc1 {[%clk 0:02:25]}  Rc8 {[%clk 0:02:56]} 14. Bd3 {[%clk 0:02:22]}  h6 {[%clk 0:02:54]} 15. Qe2 {[%clk 0:02:22]}  Nd5 {[%clk 0:02:53]} 16. Rfd1 {[%clk 0:02:20]}  cxd4 {[%clk 0:02:51]} 17. Nxd4 {[%clk 0:02:16]}  Nc5 {[%clk 0:02:51]} 18. Bb1 {[%clk 0:02:11]}  Bf6 {[%clk 0:02:48]} 19. Qc2 {[%clk 0:02:08]}  g6 {[%clk 0:02:46]} 20. e4 {[%clk 0:02:00]}  Nc3 {[%clk 0:02:42]} 21. Bxc3 {[%clk 0:01:56]}  bxc3 {[%clk 0:02:43]} 22. Nxe6 {[%clk 0:01:48]}  Nxe6 {[%clk 0:02:44]} 23. Rxd8 {[%clk 0:01:47]}  Rfxd8 {[%clk 0:02:45]} 24. e5 {[%clk 0:01:46]}  Bg7 {[%clk 0:02:44]} 25. Qxc3 {[%clk 0:01:45]}  Nf4 {[%clk 0:02:44]} 26. Qg3 {[%clk 0:01:33]}  Ne2+ {[%clk 0:02:44]} 0-1


[Site "https://www.chess.com"]

[Event "Titled Tuesday Blitz February 15 Late 2022"]
[White "Jaferian, Koosha"]
[Black "Lopez Idarraga, Daniel Eduardo"]
[WhiteFideId "12507440"]
[BlackFideId "4405501"]
[WhiteElo "2027"]
[BlackElo "1993"]
[Result "0-1"]
[Round "08"]
[TimeControl "180+1"]
[Date "2022.02.16"]
[WhiteClock "0:01:08"]
[BlackClock "0:01:19"]

1. Nf3 {[%clk 0:03:00]}  d5 {[%clk 0:02:50]} 2. b3 {[%clk 0:02:39]}  Bf5 {[%clk 0:02:49]} 3. Bb2 {[%clk 0:02:36]}  e6 {[%clk 0:02:49]} 4. g3 {[%clk 0:02:37]}  h6 {[%clk 0:02:49]} 5. Bg2 {[%clk 0:02:37]}  Nf6 {[%clk 0:02:49]} 6. O-O {[%clk 0:02:37]}  Be7 {[%clk 0:02:50]} 7. d3 {[%clk 0:02:38]}  O-O {[%clk 0:02:51]} 8. Nbd2 {[%clk 0:02:38]}  Bh7 {[%clk 0:02:51]} 9. e3 {[%clk 0:02:39]}  c5 {[%clk 0:02:50]} 10. Qe2 {[%clk 0:02:39]}  Nc6 {[%clk 0:02:51]} 11. Ne1 {[%clk 0:02:39]}  b5 {[%clk 0:02:51]} 12. f4 {[%clk 0:02:39]}  a5 {[%clk 0:02:50]} 13. a4 {[%clk 0:02:38]}  bxa4 {[%clk 0:02:49]} 14. Rxa4 {[%clk 0:02:37]}  Nd7 {[%clk 0:02:49]} 15. e4 {[%clk 0:02:04]}  Nb6 {[%clk 0:02:09]} 16. Ra1 {[%clk 0:02:02]}  a4 {[%clk 0:02:10]} 17. exd5 {[%clk 0:01:47]}  exd5 {[%clk 0:02:05]} 18. Nef3 {[%clk 0:01:47]}  c4 {[%clk 0:02:02]} 19. bxc4 {[%clk 0:01:41]}  dxc4 {[%clk 0:02:03]} 20. Nxc4 {[%clk 0:01:39]}  Nxc4 {[%clk 0:01:57]} 21. dxc4 {[%clk 0:01:40]}  Qb6+ {[%clk 0:01:56]} 22. Kh1 {[%clk 0:01:27]}  Qxb2 {[%clk 0:01:55]} 23. Ne5 {[%clk 0:01:27]}  Nxe5 {[%clk 0:01:49]} 24. Bxa8 {[%clk 0:01:27]}  Rxa8 {[%clk 0:01:45]} 25. fxe5 {[%clk 0:01:27]}  Qb7+ {[%clk 0:01:42]} 26. Kg1 {[%clk 0:01:20]}  Bc5+ {[%clk 0:01:40]} 27. Rf2 {[%clk 0:01:21]}  a3 {[%clk 0:01:37]} 28. e6 {[%clk 0:01:17]}  fxe6 {[%clk 0:01:34]} 29. Qxe6+ {[%clk 0:01:18]}  Kh8 {[%clk 0:01:34]} 30. Qd5 {[%clk 0:01:08]}  Qxd5 {[%clk 0:01:26]} 31. cxd5 {[%clk 0:01:09]}  a2 {[%clk 0:01:26]} 32. c4 {[%clk 0:01:08]}  Bd3 {[%clk 0:01:19]} 0-1


[Site "https://www.chess.com"]

[Event "Titled Tuesday Blitz February 15 Late 2022"]
[White "Jimenez Fernandez, Rebeca"]
[Black "Stanisz, Patryk"]
[WhiteFideId "32070934"]
[BlackFideId "1123106"]
[WhiteElo "1853"]
[BlackElo "1876"]
[Result "1/2-1/2"]
[Round "08"]
[TimeControl "180+1"]
[Date "2022.02.16"]
[WhiteClock "0:00:19"]
[BlackClock "0:00:52"]

1. e4 {[%clk 0:03:00]}  c5 {[%clk 0:03:00]} 2. Nc3 {[%clk 0:02:58]}  Nc6 {[%clk 0:02:59]} 3. g3 {[%clk 0:02:57]}  g6 {[%clk 0:02:59]} 4. Bg2 {[%clk 0:02:57]}  Bg7 {[%clk 0:02:58]} 5. d3 {[%clk 0:02:58]}  Rb8 {[%clk 0:02:57]} 6. Be3 {[%clk 0:02:58]}  d6 {[%clk 0:02:57]} 7. Qd2 {[%clk 0:02:55]}  b5 {[%clk 0:02:52]} 8. Nge2 {[%clk 0:02:55]}  b4 {[%clk 0:02:52]} 9. Nd1 {[%clk 0:02:54]}  a5 {[%clk 0:02:53]} 10. O-O {[%clk 0:02:53]}  a4 {[%clk 0:02:53]} 11. d4 {[%clk 0:02:39]}  cxd4 {[%clk 0:02:46]} 12. Nxd4 {[%clk 0:02:40]}  Bb7 {[%clk 0:02:38]} 13. Nxc6 {[%clk 0:02:26]}  Bxc6 {[%clk 0:02:39]} 14. Bd4 {[%clk 0:02:26]}  e5 {[%clk 0:02:09]} 15. Be3 {[%clk 0:02:23]}  Ne7 {[%clk 0:02:08]} 16. f4 {[%clk 0:02:17]}  exf4 {[%clk 0:01:59]} 17. Bxf4 {[%clk 0:02:02]}  Be5 {[%clk 0:01:50]} 18. Ne3 {[%clk 0:01:52]}  O-O {[%clk 0:01:37]} 19. Nd5 {[%clk 0:01:30]}  Bxd5 {[%clk 0:01:32]} 20. exd5 {[%clk 0:01:27]}  Qb6+ {[%clk 0:01:32]} 21. Kh1 {[%clk 0:01:22]}  Bxb2 {[%clk 0:01:24]} 22. Rab1 {[%clk 0:01:06]}  Bg7 {[%clk 0:01:17]} 23. a3 {[%clk 0:01:01]}  b3 {[%clk 0:01:12]} 24. cxb3 {[%clk 0:01:00]}  axb3 {[%clk 0:01:13]} 25. Bh6 {[%clk 0:00:51]}  Nf5 {[%clk 0:01:07]} 26. Rxf5 {[%clk 0:00:49]}  gxf5 {[%clk 0:01:00]} 27. Bxg7 {[%clk 0:00:33]}  Kxg7 {[%clk 0:00:54]} 28. Qg5+ {[%clk 0:00:33]}  Kh8 {[%clk 0:00:54]} 29. Qf6+ {[%clk 0:00:31]}  Kg8 {[%clk 0:00:55]} 30. Qg5+ {[%clk 0:00:25]}  Kh8 {[%clk 0:00:55]} 31. Qf6+ {[%clk 0:00:21]}  Kg8 {[%clk 0:00:54]} 32. Qg5+ {[%clk 0:00:19]}  Kh8 {[%clk 0:00:52]} 1/2-1/2


[Site "https://www.chess.com"]

[Event "Titled Tuesday Blitz February 15 Late 2022"]
[White "Jobava, Baadur"]
[Black "Erdogdu, Mert"]
[WhiteFideId "13601520"]
[BlackFideId "6301495"]
[WhiteElo "2617"]
[BlackElo "2485"]
[Result "1-0"]
[Round "08"]
[TimeControl "180+1"]
[Date "2022.02.15"]
[WhiteClock "0:00:22"]
[BlackClock "0:00:06"]

1. b3 {[%clk 0:03:00]}  g6 {[%clk 0:02:59]} 2. Bb2 {[%clk 0:03:00]}  Nf6 {[%clk 0:03:00]} 3. g3 {[%clk 0:03:01]}  Bg7 {[%clk 0:03:00]} 4. Bg2 {[%clk 0:03:01]}  c5 {[%clk 0:03:00]} 5. c4 {[%clk 0:03:01]}  O-O {[%clk 0:03:00]} 6. Nf3 {[%clk 0:03:00]}  Nc6 {[%clk 0:03:00]} 7. O-O {[%clk 0:02:59]}  d6 {[%clk 0:03:00]} 8. d4 {[%clk 0:02:58]}  cxd4 {[%clk 0:03:01]} 9. Nxd4 {[%clk 0:02:59]}  Bd7 {[%clk 0:03:01]} 10. Nc3 {[%clk 0:02:59]}  Qa5 {[%clk 0:03:01]} 11. e3 {[%clk 0:02:59]}  Rfc8 {[%clk 0:03:01]} 12. Re1 {[%clk 0:02:48]}  a6 {[%clk 0:03:01]} 13. Rc1 {[%clk 0:02:46]}  Rab8 {[%clk 0:03:00]} 14. h3 {[%clk 0:02:45]}  Ne5 {[%clk 0:02:13]} 15. f4 {[%clk 0:02:37]}  Nc6 {[%clk 0:02:13]} 16. Kh2 {[%clk 0:02:38]}  Qd8 {[%clk 0:02:10]} 17. a4 {[%clk 0:02:31]}  Na5 {[%clk 0:02:03]} 18. e4 {[%clk 0:02:29]}  Be8 {[%clk 0:01:50]} 19. e5 {[%clk 0:02:20]}  dxe5 {[%clk 0:01:49]} 20. fxe5 {[%clk 0:02:21]}  Nh5 {[%clk 0:01:38]} 21. Qd2 {[%clk 0:01:46]}  Nc6 {[%clk 0:01:19]} 22. Bxc6 {[%clk 0:01:46]}  bxc6 {[%clk 0:01:11]} 23. Rcd1 {[%clk 0:01:29]}  c5 {[%clk 0:01:09]} 24. Nf3 {[%clk 0:01:29]}  Qxd2+ {[%clk 0:01:09]} 25. Nxd2 {[%clk 0:01:30]}  e6 {[%clk 0:01:04]} 26. Ba3 {[%clk 0:01:21]}  Rb7 {[%clk 0:00:48]} 27. Rb1 {[%clk 0:01:16]}  Rd7 {[%clk 0:00:43]} 28. Nf1 {[%clk 0:00:56]}  Rd3 {[%clk 0:00:38]} 29. Ne4 {[%clk 0:00:53]}  Bxe5 {[%clk 0:00:30]} 30. Nxc5 {[%clk 0:00:52]}  Bxg3+ {[%clk 0:00:30]} 31. Nxg3 {[%clk 0:00:52]}  Rxg3 {[%clk 0:00:30]} 32. Ne4 {[%clk 0:00:40]}  Rf3 {[%clk 0:00:28]} 33. Rf1 {[%clk 0:00:31]}  Rxf1 {[%clk 0:00:28]} 34. Rxf1 {[%clk 0:00:32]}  Bc6 {[%clk 0:00:28]} 35. Nd6 {[%clk 0:00:33]}  Rb8 {[%clk 0:00:25]} 36. b4 {[%clk 0:00:32]}  Bxa4 {[%clk 0:00:24]} 37. Nxf7 {[%clk 0:00:31]}  Bb3 {[%clk 0:00:18]} 38. Ne5 {[%clk 0:00:27]}  Rd8 {[%clk 0:00:15]} 39. Rf2 {[%clk 0:00:23]}  Rd1 {[%clk 0:00:15]} 40. Bb2 {[%clk 0:00:21]}  Rb1 {[%clk 0:00:14]} 41. Ng4 {[%clk 0:00:21]}  h6 {[%clk 0:00:10]} 42. Nxh6+ {[%clk 0:00:21]}  Kh7 {[%clk 0:00:11]} 43. Ng4 {[%clk 0:00:22]}  Bxc4 {[%clk 0:00:09]} 44. Rf7+ {[%clk 0:00:22]}  Kg8 {[%clk 0:00:06]} 45. Nh6# {[%clk 0:00:22]} 1-0


[Site "https://www.chess.com"]